bitfinex/quotes_SOLUSD_20240913
["timestamp","ask_amount","ask_price","bid_price","bid_amount"]
[1726201117837,0.253541,135.03,134.99,0.25098]
[1726201121443,0.253541,135.03,135.0,0.12549]
[1726201121655,0.253541,135.03,134.98,0.25098]
[1726201127062,0.253541,135.03,134.96,22.5384]
[1726201127063,0.253541,135.03,134.96,6.3349]
[1726201128244,0.253541,135.03,134.97,0.25098]
[1726201152558,15.3234,135.02,134.96,0.25098]
[1726201162579,6.2045,135.01,134.96,0.25098]
[1726201168489,6.2045,135.01,134.93,15.3234]
[1726201168490,6.2045,135.01,134.92,8.91301716]
[1726201168682,6.2045,135.01,134.93,0.25098]
[1726201168871,16.235,135.0,134.93,0.25098]
[1726201178008,16.235,135.0,134.92,0.25098]
[1726201186287,16.235,135.0,134.92,15.50268]
[1726201194426,6.2045,135.01,134.92,15.50268]
[1726201198033,23.776884,135.01,134.92,15.50268]
[1726201199335,31.183684,135.01,134.92,15.50268]
[1726201199508,53.463684,135.01,134.92,15.50268]
[1726201200209,7.4079,134.99,134.92,15.2517]
[1726201200520,29.6879,134.99,134.92,15.2517]
[1726201200714,23.776884,134.99,134.92,15.2517]
[1726201201534,22.28,135.0,134.92,15.2517]
[1726201201727,22.28,135.0,134.93,0.25098]
[1726201201929,22.28,135.0,134.94,6.4076]
[1726201202116,15.459241,135.03,134.94,21.21084954]
[1726201202328,0.253541,135.03,134.95,16.27998]
[1726201203606,46.310425,135.03,134.95,16.27998]
[1726201203837,46.310425,135.03,134.95,17.76165392]
[1726201204339,24.030425,135.03,134.95,16.27998]
[1726201205815,46.310425,135.03,134.95,16.27998]
[1726201207220,24.030425,135.03,134.96,1.48167806]
[1726201207625,24.030425,135.03,134.95,16.27998]
[1726201213231,53.716325,135.03,134.95,16.27998]
[1726201217149,0.253541,135.03,134.96,6.4043]
[1726201217325,0.253541,135.03,134.97,0.25098]
[1726201219452,22.533541,135.03,134.97,0.25098]
[1726201219745,0.253541,135.03,134.97,0.25098]
[1726201226462,0.253541,135.03,134.98,15.9347]
[1726201228468,0.253541,135.03,134.99,6.3123]
[1726201241685,0.253541,135.03,135.0,0.12549]
[1726201244279,0.253541,135.03,135.0,0.25098]
[1726201245071,0.253541,135.03,135.01,15.3233]
[1726201245269,0.253541,135.03,135.02,0.25098]
[1726201257075,0.253541,135.03,135.01,15.3233]
[1726201260379,0.253541,135.03,134.97,15.0774]
[1726201261182,22.533541,135.03,134.95,6.6203]
[1726201261480,23.776884,135.02,134.95,6.6203]
[1726201261969,31.183484,135.02,134.95,6.6203]
[1726201266597,75.743484,135.02,134.95,6.6203]
[1726201266800,31.183484,135.02,134.95,6.6203]
[1726201267985,53.463484,135.02,134.94,15.20289]
[1726201268409,7.4068,135.01,134.94,15.20289]
[1726201268697,53.463284,135.02,134.94,15.20289]
[1726201268903,53.463284,135.02,134.95,0.12549]
[1726201271002,7.4074,135.0,134.95,0.12549]
[1726201271186,7.4069,135.01,134.94,15.0774]
[1726201271393,22.28,135.0,134.94,15.0774]
[1726201275005,22.28,135.0,134.93,0.12549]
[1726201275196,22.28,135.0,134.92,0.25098]
[1726201275501,53.464784,134.99,134.91,21.9561]
[1726201276699,98.004784,134.99,134.91,21.9561]
[1726201277006,98.004784,134.99,134.92,0.12549]
[1726201277403,98.004784,134.99,134.92,0.25098]
[1726201284808,90.596884,134.99,134.92,0.25098]
[1726201299515,46.056884,134.99,134.92,0.25098]
[1726201309225,23.776884,134.99,134.92,0.25098]
[1726201312123,6.5187,135.0,134.92,0.25098]
[1726201313545,23.776884,134.99,134.92,0.25098]
[1726201315025,36.2061,135.0,134.92,0.25098]
[1726201320428,46.056884,134.99,134.92,0.25098]
[1726201320748,60.9458,135.01,134.93,14.80324954]
[1726201320749,38.6858,135.01,134.93,14.80324954]
[1726201320952,51.345741,135.03,134.94,15.05422954]
[1726201321158,51.345741,135.03,134.94,14.80324954]
[1726201321331,51.345741,135.03,134.95,0.25098]
[1726201321742,73.625741,135.03,134.95,0.25098]
[1726201321934,29.085741,135.03,134.95,15.05422954]
[1726201322142,22.533541,135.03,134.96,15.7805]
[1726201322340,22.533541,135.03,134.97,0.25098]
[1726201322569,0.253541,135.03,134.97,0.25098]
[1726201334778,0.253541,135.03,134.97,15.05422954]
[1726201336489,0.253541,135.03,134.97,0.25098]
[1726201385953,0.253541,135.03,134.98,21.6115]
[1726201389155,0.253541,135.03,134.98,23.09293122]
[1726201390678,0.253541,135.03,134.98,21.6115]
[1726201396081,23.776884,135.02,134.98,21.6115]
[1726201396258,7.4071,135.01,134.98,15.4272]
[1726201396460,23.776884,135.0,134.95,22.1428]
[1726201397489,53.464484,135.0,134.95,22.1428]
[1726201405183,31.184484,135.0,134.95,22.1428]
[1726201405494,31.183784,135.01,134.95,22.1428]
[1726201406792,22.28,135.0,134.95,22.1428]
[1726201407091,31.183784,135.01,134.95,22.1428]
[1726201408896,23.776884,135.01,134.95,22.1428]
[1726201410700,31.183684,135.01,134.95,22.1428]
[1726201415624,7.4075,135.0,134.95,22.1428]
[1726201417714,31.183784,135.01,134.95,22.1428]
[1726201418212,7.4065,135.02,134.95,22.1428]
[1726201425511,22.533541,135.03,134.96,16.2283]
[1726201425512,24.030425,135.03,134.96,16.2283]
[1726201425719,24.030425,135.03,134.97,6.4298]
[1726201426012,0.253541,135.03,134.97,6.4298]
[1726201426215,0.253541,135.03,134.98,16.2283]
[1726201428613,0.253541,135.03,134.99,0.12549]
[1726201428807,0.253541,135.03,135.0,6.6195]
[1726201441132,23.776884,135.02,134.98,16.2283]
[1726201441520,7.659441,135.03,134.98,16.2283]
[1726201441728,0.253541,135.03,134.98,16.2283]
[1726201442229,24.030425,135.03,134.98,16.2283]
[1726201442434,0.253541,135.03,134.98,16.2283]
[1726201444248,0.253541,135.03,134.99,6.6295]
[1726201466539,7.659441,135.03,134.99,6.6295]
[1726201466738,0.253541,135.03,134.99,6.6295]
[1726201467054,22.533541,135.03,134.99,6.6295]
[1726201467236,0.253541,135.03,134.99,6.6295]
[1726201474264,7.659341,135.03,134.99,6.6295]
[1726201474465,23.776884,135.02,134.99,6.6295]
[1726201480273,23.776884,135.02,134.98,16.2283]
[1726201480274,31.183184,135.02,134.98,16.2283]
[1726201481751,53.463184,135.02,134.98,16.2283]
[1726201482275,7.407,135.01,134.98,16.2283]
[1726201482478,23.776884,135.0,134.98,16.2283]
[1726201484757,68.316884,135.0,134.98,16.2283]
[1726201484962,23.776884,135.0,134.98,16.2283]
[1726201492303,23.776884,135.01,134.98,16.2283]
[1726201501000,31.183784,135.01,134.98,16.2283]
[1726201502877,46.056884,135.02,134.98,16.2283]
[1726201504304,53.463184,135.02,134.98,16.2283]
[1726201505207,44.54,135.01,134.98,16.2283]
[1726201505515,53.463184,135.02,134.98,16.2283]
[1726201507621,31.183184,135.02,134.98,16.2283]
[1726201511193,23.776884,135.0,134.98,16.2283]
[1726201517298,22.28,134.99,134.98,16.2283]
[1726201517500,23.776884,135.0,134.98,16.2283]
[1726201519140,31.184384,135.0,134.96,6.607]
[1726201519430,7.408,134.99,134.95,16.5379]
[1726201520551,31.185484,134.98,134.95,16.5379]
[1726201521008,31.185484,134.98,134.93,6.3542]
[1726201521207,53.465484,134.98,134.93,6.3542]
[1726201522412,23.776884,134.96,134.92,16.5379]
[1726201522935,23.776884,134.96,134.89,6.853041]
[1726201522936,46.056884,134.96,134.89,23.357541]
[1726201524422,23.776884,134.94,134.89,23.357541]
[1726201527336,22.28,134.93,134.89,23.357541]
[1726201527637,23.776884,134.94,134.89,23.357541]
[1726201537433,7.4092,134.97,134.89,23.357541]
[1726201537750,20.0,134.97,134.89,23.357541]
[1726201537935,27.409,134.97,134.89,23.357541]
[1726201539019,23.776884,134.96,134.89,23.357541]
[1726201545431,31.186484,134.96,134.89,23.357541]
[1726201562961,7.4101,134.95,134.89,23.357541]
[1726201565861,7.4107,134.94,134.89,23.357541]
[1726201570472,23.776884,134.94,134.89,23.357541]
[1726201575683,46.056884,134.94,134.89,23.357541]
[1726201576262,7.4116,134.93,134.89,23.357541]
[1726201579059,31.188984,134.92,134.89,23.357541]
[1726201581166,31.188984,134.92,134.89,16.758041]
[1726201583080,23.776884,134.92,134.89,16.758041]
[1726201584662,23.776884,134.93,134.89,16.758041]
[1726201591062,7.4109,134.94,134.89,16.758041]
[1726201591967,51.187184,134.95,134.89,16.758041]
[1726201592785,23.776884,134.95,134.89,16.758041]
[1726201592972,23.776884,134.95,134.9,6.3755]
[1726201593166,29.6898,134.96,134.9,6.3755]
[1726201594581,23.776884,134.95,134.9,6.3755]
[1726201598293,22.28,134.94,134.9,6.3755]
[1726201598478,23.776884,134.95,134.9,6.3755]
[1726201610696,23.776884,134.96,134.9,6.3755]
[1726201610898,23.776884,134.96,134.91,15.6734]
[1726201612187,7.4086,134.98,134.91,15.6734]
[1726201612394,7.4081,134.99,134.91,15.6734]
[1726201612588,7.4081,134.99,134.92,6.2911]
[1726201613778,23.776884,134.98,134.92,6.2911]
[1726201616002,23.776884,134.98,134.93,15.5508]
[1726201620596,7.4081,134.99,134.93,15.5508]
[1726201621488,23.776884,135.0,134.93,15.5508]
[1726201622111,66.056884,135.01,134.93,15.5508]
[1726201622893,23.776884,134.99,134.93,15.5508]
[1726201630215,7.4077,135.0,134.93,15.5508]
[1726201630918,27.407,135.01,134.93,15.5508]
[1726201633713,27.407,135.01,134.94,6.3733]
[1726201635919,71.987,135.01,134.94,6.3733]
[1726201636125,27.407,135.01,134.94,6.3733]
[1726201637810,27.407,135.01,134.95,16.1703]
[1726201638525,7.4065,135.02,134.95,16.1703]
[1726201638721,23.776884,135.01,134.95,16.1703]
[1726201638932,7.4065,135.02,134.95,16.1703]
[1726201639300,7.659441,135.03,134.96,6.115]
[1726201640629,0.253541,135.03,134.97,16.1703]
[1726201640826,7.659341,135.03,134.97,16.1703]
[1726201641924,0.253541,135.03,134.97,16.1703]
[1726201642800,0.253541,135.03,134.98,6.1727]
[1726201646703,0.253541,135.03,134.99,16.1943]
[1726201656531,0.253541,135.03,134.99,17.67553193]
[1726201657723,0.253541,135.03,134.99,16.1943]
[1726201722072,0.253541,135.03,135.0,0.12549]
[1726201722383,0.253541,135.03,135.0,1.60650935]
[1726201722574,0.253541,135.03,135.01,22.5728]
[1726201722773,0.253541,135.03,135.01,37.37604954]
[1726201724391,0.253541,135.03,135.01,22.5728]
[1726201733893,0.253541,135.03,135.01,16.2519]
[1726201742581,0.253541,135.03,135.02,1.4810314]
[1726201744682,0.253541,135.03,135.01,16.2519]
[1726201744884,0.253541,135.03,135.01,17.7329192]
[1726201745883,0.253541,135.03,135.01,16.2519]
[1726201763492,0.253541,135.03,134.98,36.46804954]
[1726201763703,0.253541,135.03,134.99,0.12549]
[1726201765511,0.253541,135.03,134.98,21.6648]
[1726201773001,0.253541,135.03,134.98,36.46804954]
[1726201773702,0.253541,135.03,134.99,14.80324954]
[1726201774317,0.253541,135.03,135.0,1.48113644]
[1726201774997,0.253541,135.03,134.99,14.80324954]
[1726201781424,0.253541,135.03,134.98,21.6648]
[1726201781727,0.253541,135.03,134.99,14.80324954]
[1726201782503,0.253541,135.03,135.0,0.12549]
[1726201783319,0.253541,135.03,134.99,14.80324954]
[1726201783626,0.253541,135.03,134.98,36.46804954]
[1726201783817,0.253541,135.03,134.99,0.12549]
[1726201785936,0.253541,135.03,135.0,14.80324954]
[1726201786916,0.253541,135.03,135.01,14.80324954]
[1726201787233,0.253541,135.03,135.02,16.40968872]
[1726201787422,0.253541,135.03,135.02,14.80324954]
[1726201787612,0.253541,135.03,135.02,14.92873954]
[1726201790638,0.253541,135.03,135.02,15.05422954]
[1726201803525,0.253541,135.03,135.02,0.25098]
[1726201805719,0.253541,135.03,135.02,15.05422954]
[1726201812738,0.253541,135.03,135.02,0.25098]
[1726201812951,0.253541,135.03,135.01,20.0]
[1726201813125,0.253541,135.03,135.01,27.4019]
[1726201814849,0.253541,135.03,135.01,7.4019]
[1726201815058,0.253541,135.03,135.0,0.12549]
[1726201815339,0.253541,135.03,134.99,7.74702406]
[1726201816448,0.253541,135.03,135.0,14.92873954]
[1726201817747,0.253541,135.03,135.02,14.80324954]
[1726201817948,0.253541,135.03,135.02,15.05422954]
[1726201820348,0.253541,135.03,135.02,14.92873954]
[1726201821638,0.253541,135.03,135.02,0.12549]
[1726201821829,0.253541,135.03,135.02,14.80324954]
[1726201822335,0.253541,135.03,135.02,14.92873954]
[1726201824345,0.253541,135.03,135.01,14.92873954]
[1726201824555,0.253541,135.03,135.0,34.92873954]
[1726201824737,0.253541,135.03,135.01,0.12549]
[1726201830457,0.253541,135.03,135.01,14.92873954]
[1726201830641,0.253541,135.03,135.02,14.80324954]
[1726201831256,0.253541,135.03,135.01,14.92873954]
[1726201832731,0.253541,135.03,135.02,14.80324954]
[1726201833354,0.253541,135.03,135.02,14.92873954]
[1726201837259,0.253541,135.03,135.02,16.40956749]
[1726201837956,0.253541,135.03,135.02,14.92873954]
[1726201840445,0.253541,135.03,135.0,20.0]
[1726201840646,0.253541,135.03,135.01,0.12549]
[1726201841542,0.253541,135.03,135.01,14.92873954]
[1726201842069,0.253541,135.03,135.02,14.92873954]
[1726201842251,0.253541,135.03,135.02,15.05422954]
[1726201860080,0.253541,135.03,135.02,0.12549]
[1726201860254,0.253541,135.03,135.0,34.80324954]
[1726201861462,0.253541,135.03,135.0,20.0]
[1726201863079,0.253541,135.03,135.0,34.80324954]
[1726201868068,0.253541,135.03,134.99,22.67687114]
[1726201868397,0.253541,135.03,135.0,0.12549]
[1726201870191,0.253541,135.03,135.0,1.60658295]
[1726201871091,0.253541,135.03,135.0,0.12549]
[1726201871298,0.253541,135.03,135.0,15.05422954]
[1726201878713,0.253541,135.03,135.01,14.80324954]
[1726201879212,0.253541,135.03,135.02,0.12549]
[1726201881098,0.253541,135.03,135.0,14.92873954]
[1726201886211,0.253541,135.03,135.0,0.12549]
[1726201889094,0.253541,135.03,135.0,1.60661043]
[1726201889314,0.253541,135.03,135.0,0.12549]
[1726201891220,0.253541,135.03,134.95,8.70956811]
[1726201891516,0.253541,135.03,134.96,14.80324954]
[1726201894214,0.253541,135.03,134.97,0.12549]
[1726201896418,0.253541,135.03,134.97,14.92873954]
[1726201897720,0.253541,135.03,134.98,14.80324954]
[1726201900101,0.253541,135.03,134.97,14.92873954]
[1726201919341,0.253541,135.03,134.97,0.12549]
[1726201919636,0.253541,135.03,134.96,14.80324954]
[1726201919637,6.432941,135.03,134.96,14.80324954]
[1726201920634,6.432941,135.03,134.95,14.92873954]
[1726201920836,39.717684,135.02,134.94,9.03532802]
[1726201921048,23.776884,135.0,134.91,14.80324954]
[1726201922015,6.1794,134.99,134.91,14.80324954]
[1726201922418,6.1794,134.99,134.92,20.0]
[1726201923343,6.1794,134.99,134.93,0.12549]
[1726201923641,15.9408,134.98,134.91,14.80324954]
[1726201923934,15.9408,134.98,134.92,0.12549]
[1726201924152,23.3497,134.98,134.9,23.21251872]
[1726201924330,15.9408,134.98,134.9,14.80324954]
[1726201925541,15.9408,134.98,134.89,0.253541]
[1726201925542,23.776884,134.97,134.89,0.253541]
[1726201925840,53.456284,134.97,134.89,0.253541]
[1726201926134,31.186284,134.97,134.89,0.253541]
[1726201926635,53.456284,134.97,134.89,0.253541]
[1726201926936,23.776884,134.95,134.89,0.253541]
[1726201927130,15.2946,134.94,134.89,0.253541]
[1726201932815,23.776884,134.93,134.89,0.253541]
[1726201938248,15.2946,134.94,134.89,0.253541]
[1726201941557,23.776884,134.93,134.89,0.253541]
[1726201942848,31.188184,134.93,134.89,0.253541]
[1726201943350,23.776884,134.93,134.89,0.253541]
[1726201943752,46.046884,134.93,134.89,0.253541]
[1726201945353,23.776884,134.91,134.89,0.253541]
[1726201945547,30.364084,134.91,134.89,0.253541]
[1726201947570,52.634084,134.91,134.89,0.253541]
[1726201947755,60.046484,134.91,134.89,0.253541]
[1726201948253,53.459684,134.9,134.89,0.253541]
[1726201950358,70.000574,134.9,134.89,0.253541]
[1726201954483,70.126064,134.9,134.89,0.253541]
[1726201954778,90.126064,134.9,134.89,0.253541]
[1726201957661,90.000574,134.9,134.89,0.253541]
[1726201957963,134.530574,134.9,134.89,0.253541]
[1726201970968,118.115174,134.9,134.89,0.253541]
[1726201979504,118.240664,134.9,134.89,0.253541]
[1726201979697,23.776884,134.86,134.85,0.253541]
[1726201980288,44.53,134.89,134.85,0.253541]
[1726201980289,22.27,134.88,134.85,0.253541]
[1726201980489,23.776884,134.88,134.85,0.253541]
[1726201982407,31.190884,134.88,134.85,0.253541]
[1726201983006,23.776884,134.86,134.85,0.253541]
[1726201992194,31.191884,134.86,134.85,0.253541]
[1726201993797,53.461884,134.86,134.85,0.253541]
[1726201995519,53.587374,134.86,134.85,0.253541]
[1726201999124,98.117374,134.86,134.85,0.253541]
[1726201999529,23.776884,134.82,134.81,0.253541]
[1726201999728,53.464084,134.82,134.81,0.253541]
[1726202000239,46.046884,134.82,134.81,0.253541]
[1726202001232,53.464084,134.82,134.81,0.253541]
[1726202002635,46.046884,134.82,134.81,0.253541]
[1726202004311,53.464084,134.82,134.81,0.253541]
[1726202005213,53.715064,134.82,134.81,0.253541]
[1726202005820,73.715064,134.82,134.81,0.253541]
[1726202010735,73.464084,134.82,134.81,0.253541]
[1726202013840,51.194084,134.82,134.81,0.253541]
[1726202015338,44.53,134.87,134.81,0.253541]
[1726202015531,22.27,134.86,134.81,0.253541]
[1726202015728,22.27,134.85,134.81,0.253541]
[1726202016521,7.4165,134.84,134.81,0.253541]
[1726202016722,31.193584,134.83,134.81,0.253541]
[1726202017539,7.4172,134.82,134.81,0.253541]
[1726202017744,31.194084,134.82,134.81,0.253541]
[1726202018945,23.776884,134.82,134.81,0.253541]
[1726202021625,46.046884,134.82,134.81,0.253541]
[1726202021829,23.776884,134.82,134.81,0.253541]
[1726202022133,31.194084,134.82,134.81,0.253541]
[1726202031359,53.464084,134.82,134.81,0.253541]
[1726202031562,53.589574,134.82,134.81,0.253541]
[1726202033549,53.464084,134.82,134.81,0.253541]
[1726202040348,31.194084,134.82,134.81,0.253541]
[1726202045457,23.776884,134.82,134.81,0.253541]
[1726202055172,31.194084,134.82,134.81,0.253541]
[1726202055472,53.464084,134.82,134.81,0.253541]
[1726202055670,53.715064,134.82,134.81,0.253541]
[1726202057647,73.715064,134.82,134.81,0.253541]
[1726202057853,73.715064,134.82,134.77,16.125841]
[1726202057854,29.6882,134.81,134.77,16.125841]
[1726202058053,31.195284,134.8,134.77,16.125841]
[1726202061568,53.465284,134.8,134.77,16.125841]
[1726202063582,23.776884,134.78,134.77,16.125841]
[1726202065061,23.776884,134.8,134.77,16.125841]
[1726202086006,7.418,134.81,134.77,16.125841]
[1726202086007,23.776884,134.81,134.77,16.125841]
[1726202087480,31.194684,134.81,134.77,16.125841]
[1726202090298,23.776884,134.81,134.77,16.125841]
[1726202090812,23.776884,134.81,134.77,22.556941]
[1726202091014,23.776884,134.83,134.77,22.556941]
[1726202091221,20.0,134.86,134.78,15.0897]
[1726202091413,27.4154,134.86,134.78,29.89294954]
[1726202091613,49.7354,134.86,134.78,29.89294954]
[1726202092104,49.7354,134.86,134.78,15.0897]
[1726202092522,22.32,134.84,134.78,15.0897]
[1726202092819,23.776884,134.85,134.78,15.0897]
[1726202093602,23.776884,134.85,134.79,14.80324954]
[1726202093818,23.776884,134.83,134.78,15.0897]
[1726202094020,23.776884,134.85,134.78,15.0897]
[1726202096125,20.0,134.86,134.79,6.3167]
[1726202096421,7.4156,134.85,134.79,6.3167]
[1726202097630,23.776884,134.84,134.79,6.3167]
[1726202102631,23.776884,134.85,134.79,6.3167]
[1726202103329,31.192584,134.85,134.79,6.3167]
[1726202105829,27.4148,134.87,134.8,16.0869]
[1726202107130,23.776884,134.86,134.8,16.0869]
[1726202109937,23.776884,134.86,134.8,30.89014954]
[1726202112238,23.776884,134.86,134.8,16.0869]
[1726202114035,23.776884,134.87,134.8,16.0869]
[1726202115539,23.776884,134.86,134.8,16.0869]
[1726202115945,7.4168,134.83,134.8,16.0869]
[1726202116118,23.776884,134.85,134.8,16.0869]
[1726202116429,46.096884,134.85,134.8,16.0869]
[1726202116738,0.12549,134.84,134.8,16.0869]
[1726202117327,23.776884,134.83,134.8,16.0869]
[1726202120141,46.096884,134.83,134.8,16.0869]
[1726202120339,7.4174,134.82,134.79,6.3167]
[1726202120523,31.194784,134.81,134.77,15.655441]
[1726202121041,23.776884,134.81,134.77,15.655441]
[1726202121542,7.4179,134.81,134.77,15.655441]
[1726202121733,23.776884,134.8,134.77,15.655441]
[1726202129359,23.776884,134.81,134.77,15.655441]
[1726202129863,31.194684,134.81,134.77,15.655441]
[1726202133156,22.32,134.8,134.77,15.655441]
[1726202133362,31.194684,134.81,134.77,15.655441]
[1726202135962,53.514684,134.81,134.77,15.655441]
[1726202138657,23.776884,134.81,134.77,15.655441]
[1726202138865,29.7369,134.83,134.77,30.45869054]
[1726202139039,7.4169,134.83,134.77,30.45869054]
[1726202139866,29.7363,134.84,134.77,30.45869054]
[1726202140039,23.776884,134.83,134.78,14.80324954]
[1726202140240,31.193584,134.83,134.77,30.45869054]
[1726202140443,46.096884,134.83,134.77,15.655441]
[1726202140740,0.12549,134.82,134.77,15.655441]
[1726202140941,31.195584,134.8,134.77,15.655441]
[1726202141453,23.776884,134.8,134.77,15.655441]
[1726202141761,23.776884,134.81,134.77,15.655441]
[1726202143266,23.776884,134.82,134.77,15.655441]
[1726202144775,31.194184,134.82,134.77,15.655441]
[1726202148171,53.513684,134.83,134.77,15.655441]
[1726202148664,7.4173,134.82,134.77,15.655441]
[1726202148978,23.776884,134.81,134.77,15.655441]
[1726202156488,31.194784,134.81,134.77,15.655441]
[1726202162863,23.776884,134.82,134.77,15.655441]
[1726202163062,27.4167,134.83,134.77,15.655441]
[1726202163278,22.32,134.82,134.77,15.655441]
[1726202163586,20.0,134.83,134.77,15.655441]
[1726202164061,29.7365,134.84,134.77,15.655441]
[1726202165472,23.776884,134.83,134.77,15.655441]
[1726202167996,20.0,134.85,134.78,22.8441837]
[1726202168206,7.4146,134.87,134.82,6.4601]
[1726202168492,7.4146,134.87,134.83,15.7936]
[1726202169591,23.776884,134.86,134.83,15.7936]
[1726202171594,23.776884,134.88,134.83,15.7936]
[1726202172101,7.414,134.88,134.83,15.7936]
[1726202173379,23.776884,134.87,134.83,15.7936]
[1726202178785,0.253541,134.91,134.83,15.7936]
[1726202179117,0.253541,134.91,134.85,6.3576]
[1726202179298,20.0,134.9,134.85,6.3576]
[1726202180509,23.776884,134.9,134.85,6.3576]
[1726202180902,0.253541,134.91,134.86,16.6152]
[1726202181102,0.253541,134.91,134.9,37.87434954]
[1726202181329,0.253541,134.91,134.9,23.0711]
[1726202181941,0.253541,134.91,134.9,16.6152]
[1726202187516,0.253541,134.91,134.87,22.1708]
[1726202187730,7.665941,134.91,134.87,22.1708]
[1726202189017,0.253541,134.91,134.87,22.1708]
[1726202189196,7.665941,134.91,134.87,22.1708]
[1726202189404,23.776884,134.9,134.87,15.7774]
[1726202189604,31.190084,134.9,134.87,15.7774]
[1726202189809,46.096884,134.9,134.84,21.6733]
[1726202190413,7.4135,134.89,134.84,21.6733]
[1726202190594,23.776884,134.88,134.84,21.6733]
[1726202193517,22.32,134.87,134.84,21.6733]
[1726202193697,23.776884,134.88,134.84,21.6733]
[1726202194617,23.776884,134.88,134.84,15.2059]
[1726202194850,31.190884,134.88,134.84,15.2059]
[1726202197119,31.190884,134.88,134.82,6.6249]
[1726202197120,23.776884,134.86,134.82,6.6249]
[1726202197326,31.192084,134.86,134.82,6.6249]
[1726202198020,23.776884,134.86,134.82,6.6249]
[1726202200322,31.192084,134.86,134.82,6.6249]
[1726202201005,31.192084,134.86,134.81,15.4258]
[1726202214930,75.822084,134.86,134.81,15.4258]
[1726202215235,31.192084,134.86,134.81,15.4258]
[1726202216327,23.776884,134.83,134.81,15.4258]
[1726202216536,31.193784,134.83,134.79,6.4214]
[1726202216906,53.513784,134.83,134.79,6.4214]
[1726202217111,46.096884,134.83,134.79,6.4214]
[1726202217427,23.776884,134.83,134.79,6.4214]
[1726202220350,23.776884,134.84,134.79,6.4214]
[1726202233449,31.193384,134.84,134.79,6.4214]
[1726202240638,53.512684,134.85,134.79,6.4214]
[1726202241758,23.776884,134.85,134.79,6.4214]
[1726202241958,23.776884,134.86,134.79,22.70805732]
[1726202242445,7.4136,134.89,134.81,30.83674954]
[1726202242756,7.4136,134.89,134.83,6.4164]
[1726202243058,7.666041,134.91,134.85,14.80324954]
[1726202243261,0.253541,134.91,134.85,14.80324954]
[1726202245540,0.253541,134.91,134.84,30.10564954]
[1726202246238,0.253541,134.91,134.84,15.3024]
[1726202246444,0.253541,134.91,134.84,30.10564954]
[1726202247552,0.253541,134.91,134.87,6.2779]
[1726202268059,7.665841,134.91,134.87,6.2779]
[1726202268584,31.189884,134.9,134.87,6.2779]
[1726202268873,31.189884,134.9,134.84,21.6295]
[1726202283788,0.253541,134.91,134.84,36.43274954]
[1726202284095,20.253541,134.91,134.85,14.80324954]
[1726202284678,0.253541,134.91,134.86,14.80324954]
[1726202284998,0.253541,134.91,134.88,6.5853]
[1726202306092,23.776884,134.9,134.87,15.3725]
[1726202306287,31.189984,134.9,134.84,6.4173]
[1726202306483,7.4134,134.89,134.84,6.4173]
[1726202310509,31.189984,134.9,134.84,6.4173]
[1726202314517,53.509984,134.9,134.84,6.4173]
[1726202323227,7.4135,134.89,134.84,6.4173]
[1726202323404,7.4136,134.89,134.84,6.4173]
[1726202323727,23.776884,134.88,134.84,6.4173]
[1726202324519,22.32,134.87,134.84,6.4173]
[1726202324732,23.776884,134.88,134.84,6.4173]
[1726202339049,23.776884,134.86,134.81,6.4816]
[1726202340348,31.192384,134.86,134.81,6.4816]
[1726202347742,23.776884,134.86,134.81,6.4816]
[1726202350741,7.4147,134.87,134.81,6.4816]
[1726202350927,23.776884,134.87,134.81,6.4816]